lending/lending_fUSD_20250819
["ID","MTS","AMOUNT","RATE_DAILY","PERIOD"]
[380227225,1755618634069,-203.25,0.00010635,2]
[380227226,1755618634080,-200.87,0.00010635,2]
[380227227,1755618634091,-203.8,0.00010635,2]
[380227228,1755618634101,-200.21,0.00010682,2]
[380227229,1755618634110,-203.1,0.00010682,2]
[380227230,1755618634120,-202.07,0.00010682,2]
[380227231,1755618634130,-203.21,0.00010682,2]
[380227232,1755618634139,-420.0,0.00010689,2]
[380227233,1755618634149,-867.23855975,0.0001078,2]
[380227234,1755618634159,-801.18661136,0.000108,2]
[380227235,1755618634169,-281.62072057,0.00010813,2]
[380227236,1755618634179,-255.0,0.00010857,2]
[380227237,1755618634189,-1000.0,0.000109,2]
[380227238,1755618634198,-1721.02931668,0.000109,2]
[380227240,1755618634208,-1487.93731566,0.000109,2]
[380227242,1755618634218,-5000.0,0.000109,2]
[380227244,1755618634228,-276.80356781,0.000109,2]
[380227246,1755618634238,-158.50633027,0.000109,2]
[380227248,1755618634248,-166.77,0.00010913,2]
[380227250,1755618634259,-150.0,0.00010959,2]
[380227252,1755618634274,-150.0,0.00010959,2]
[380227254,1755618634285,-843.87140665,0.00010963,2]
[380227256,1755618634295,-500.0,0.00010973,2]
[380227257,1755618634304,-500.0,0.00010973,2]
[380227259,1755618634313,-500.0,0.00010973,2]
[380227261,1755618634326,-458.43483364,0.00010978,2]
[380227263,1755618634335,-212.02104404,0.00010978,2]
[380227265,1755618634345,-200.46,0.00010978,2]
[380227267,1755618634355,-203.04,0.00010978,2]
[380227269,1755618634365,-201.72,0.00010978,2]
[380227271,1755618634375,-201.07,0.00010978,2]
[380227273,1755618634385,-200.72,0.0001098,2]
[380227275,1755618634394,-500.0,0.00010986,2]
[380227277,1755618634404,-500.0,0.00010986,2]
[380227279,1755618634414,-500.0,0.00010986,2]
[380227281,1755618634423,-500.0,0.00010986,2]
[380227283,1755618634434,-500.0,0.00010986,2]
[380227285,1755618634444,-500.0,0.00010986,2]
[380227288,1755618634454,-500.0,0.00010986,2]
[380227290,1755618634464,-500.0,0.00010986,2]
[380227292,1755618634473,-500.0,0.00010986,2]
[380227294,1755618634484,-500.0,0.00010986,2]
[380227295,1755618634494,-500.0,0.00010986,2]
[380227297,1755618634503,-500.0,0.00010986,2]
[380227299,1755618634513,-500.0,0.00010986,2]
[380227301,1755618634522,-500.0,0.00010986,2]
[380227303,1755618634533,-623.26280908,0.00010986,2]
[380227306,1755618634544,-15813.0,0.0001099,2]
[380227307,1755618634554,-2480.2187957,0.0001099,2]
[380227320,1755618634672,-1600.16733505,0.0001099,2]
[380227525,1755618638497,-39318.23386925,0.0001099,2]
[380227526,1755618638507,-268.0244203,0.00010992,2]
[380227527,1755618638517,-151.0,0.00010997,2]
[380227528,1755618638528,-500.0,0.00010999,2]
[380227529,1755618638538,-406.59,0.00010999,2]
[380227531,1755618638549,-500.0,0.00010999,2]
[380227532,1755618638559,-150.0,0.00010999,2]
[380227533,1755618638569,-1113.0,0.00010999,2]
[380227534,1755618638583,-618.0,0.00010999,2]
[380227535,1755618638594,-2050.0,0.00011,2]
[380227536,1755618638605,-50000.0,0.00011,2]
[380227537,1755618638615,-210889.18585932,0.00011,2]
[380227538,1755618638688,-2344.0,0.00011,2]
[380227539,1755618638701,-1101.78380092,0.00011,2]
[380227540,1755618638714,-5915156.35330894,0.00011,2]
[380227541,1755618638724,-3589701.78379068,0.00011,2]
[380227542,1755618638736,-161921.42530137,0.00011,2]
[380227543,1755618638748,-536.04766526,0.00011,2]
[380227544,1755618638860,-3428.4,0.00011,2]
[380227545,1755618638872,-9120.4,0.00011,2]
[380227653,1755618640119,-6060.30136045,0.00011,2]
[380227655,1755618640131,-434.99998,0.00011,2]
[380227668,1755618640243,-1542.85973962,0.00011,2]
[380227670,1755618640254,-11428.23093199,0.00011,2]
[380227672,1755618640266,-8338.13906801,0.00011,2]
[380227675,1755618640277,-2284.28452,0.00011,2]
[380228064,1755618644111,-476.0207654,0.00011,2]
[380228066,1755618644122,-811.9000005,0.00011,2]
[380228068,1755618644133,-635.716992,0.00011,2]
[380228070,1755618644145,-6734.74107171,0.00011,2]
[380228073,1755618644156,-1727.76850292,0.00011,2]
[380228079,1755618644209,-972.12690068,0.00011,2]
[380228081,1755618644221,-1711.87058023,0.00011,2]
[380228083,1755618644235,-11196.79999919,0.00011,2]
[380228101,1755618644392,-281.873592,0.00011,2]
[380228296,1755618646390,-21405.82103108,0.00011,2]
[380230093,1755618812060,228.70269256,0.00012875,11]
[380230107,1755619179405,358.0,5.5e-05,2]
[380230108,1755619179549,351.0,6.68e-05,2]
[380230109,1755619179999,343.0,7.87e-05,2]
[380230110,1755619180279,336.0,9.05e-05,2]
[380230119,1755619331933,155.0,0.000221,120]
[380230133,1755619718262,354.0,4.5e-05,2]
[380230134,1755619718685,347.0,5.68e-05,2]
[380230135,1755619719246,340.0,6.87e-05,2]
[380230136,1755619719653,333.0,8.05e-05,2]
[380230137,1755619721656,326.0,9.23e-05,2]
[380230164,1755619832400,-352.1516231,9.573e-05,2]
[380230166,1755619832410,-841.12,9.574e-05,2]
[380230167,1755619832419,-183.53912574,9.574e-05,2]
[380230168,1755619832428,-300.0,9.574e-05,2]
[380230169,1755619832439,-1000.0,9.575e-05,2]
[380230170,1755619832448,-300.0,9.579e-05,2]
[380230171,1755619832458,-341.48,9.597e-05,2]
[380230172,1755619832467,-658.54158424,9.625e-05,2]
[380230173,1755619832479,-341.45841576,9.625e-05,2]
[380230175,1755619832488,-279.35,9.662e-05,2]
[380230176,1755619832498,-300.0,9.758e-05,2]
[380230177,1755619832508,-300.0,9.758e-05,2]
[380230178,1755619832518,-1200.0,9.758e-05,2]
[380230179,1755619832527,-5524.09,9.759e-05,2]
[380230180,1755619832536,-170.0,9.836e-05,7]
[380230182,1755619832546,-398.2,9.888e-05,2]
[380230183,1755619832555,-250.0,9.888e-05,2]
[380230184,1755619832564,-200.0,9.888e-05,2]
[380230185,1755619832573,-2108.38,9.888e-05,2]
[380230186,1755619832582,-151.0,0.0001,2]
[380230187,1755619832592,-500.0,0.0001,2]
[380230188,1755619832601,-500.0,0.00010055,2]
[380230189,1755619832612,-300.0,0.000104,3]
[380230190,1755619832622,-638.0,0.0001042,2]
[380230191,1755619832631,-311.1,0.00010443,2]
[380230192,1755619832640,-160.0,0.00010443,2]
[380230193,1755619832649,-248.71531821,0.00010443,2]
[380230194,1755619832658,-151.0,0.00010443,2]
[380230195,1755619832667,-3000.0,0.00010443,2]
[380230196,1755619832677,-600.0,0.000105,3]
[380230197,1755619832686,-150.0,0.0001053,2]
[380230198,1755619832695,-2000.0,0.00010531,2]
[380230199,1755619832704,-250.0,0.00010531,2]
[380230200,1755619832714,-2500.0,0.00010531,2]
[380230201,1755619832723,-300.0,0.00010531,2]
[380230202,1755619832732,-203.41,0.00010582,2]
[380230203,1755619832742,-203.11,0.00010582,2]
[380230204,1755619832751,-203.28,0.00010582,2]
[380230205,1755619832760,-203.65,0.00010582,2]
[380230206,1755619832770,-203.89,0.00010582,2]
[380230207,1755619832779,-201.5,0.00010582,2]
[380230208,1755619832788,-200.59,0.00010582,2]
[380230209,1755619832797,-202.28,0.00010582,2]
[380230210,1755619832807,-900.0,0.000106,3]
[380230211,1755619832816,-3954.42,0.00010684,2]
[380230212,1755619832825,-1200.0,0.000107,3]
[380230213,1755619832835,-212.02104404,0.00010716,2]
[380230214,1755619832844,-458.43483364,0.00010716,2]
[380230215,1755619832853,-843.87140665,0.00010716,2]
[380230216,1755619832866,-420.0,0.00010734,2]
[380230217,1755619832875,-1200.0,0.00010734,2]
[380230218,1755619832885,-998.90224032,0.0001078,2]
[380230219,1755619832895,-1600.0,0.000108,3]
[380230220,1755619832914,-1000.0,0.00010828,2]
[380230221,1755619832928,-500.0,0.00010849,2]
[380230222,1755619832938,-410.74684963,0.00010875,2]
[380230223,1755619832947,-2649.15906641,0.0001089,2]
[380230224,1755619832959,-15229.00944784,0.0001089,2]
[380230225,1755619832969,-1000.0,0.000109,2]
[380230226,1755619832978,-26827.88646762,0.000109,2]
[380230227,1755619832989,-451.67449727,0.000109,2]
[380230228,1755619833001,-163197.22573511,0.000109,2]
[380230229,1755619833011,-167.10915138,0.000109,2]
[380230230,1755619833021,-5000.0,0.000109,2]
[380230231,1755619833031,-300.0,0.000109,3]
[380230232,1755619833040,-1009.0,0.000109,2]
[380230233,1755619833050,-327.75244456,0.00010921,2]
[380230235,1755619833059,-13351.65242976,0.00010923,2]
[380230237,1755619833069,-2058.0215818,0.00010926,2]
[380230238,1755619833078,-2058.0215818,0.00010927,2]
[380230239,1755619833088,-13351.65242976,0.00010929,2]
[380230240,1755619833097,-2058.0215818,0.00010938,2]
[380230241,1755619833107,-13351.65242976,0.00010941,2]
[380230242,1755619833118,-13351.65242976,0.00010941,2]
[380230243,1755619833128,-327.75244456,0.00010943,2]
[380230244,1755619833138,-13351.65242976,0.00010944,2]
[380230245,1755619833150,-2058.0215818,0.00010948,2]
[380230246,1755619833160,-327.75244456,0.00010958,2]
[380230247,1755619833169,-2000.0,0.00010959,2]
[380230248,1755619833179,-2583.0,0.00010959,2]
[380230249,1755619833189,-1955.65,0.00010959,2]
[380230250,1755619833201,-150.0,0.00010959,2]
[380230251,1755619833210,-327.75244456,0.0001096,2]
[380230252,1755619833220,-13351.65242976,0.00010963,2]
[380230253,1755619833229,-2058.0215818,0.00010967,2]
[380230254,1755619833239,-12731.67114595,0.00010974,2]
[380230255,1755619833249,-327.75244456,0.00010978,2]
[380230256,1755619833258,-500.0,0.00010979,2]
[380230257,1755619833268,-368.82,0.00010979,2]
[380230258,1755619833277,-327.75244456,0.00010986,2]
[380230259,1755619833287,-2058.0215818,0.00010988,2]
[380230260,1755619833296,-294.44100884,0.0001099,2]
[380230261,1755619833307,-151.0,0.00010991,2]
[380230262,1755619833316,-327.75244456,0.00010992,2]
[380230263,1755619833326,-661.3721865,0.00010992,2]
[380230264,1755619833336,-1747.0457477,0.00010992,2]
[380230265,1755619833345,-25268.31513327,0.00010993,2]
[380230266,1755619833355,-2058.0215818,0.00010994,2]
[380230267,1755619833365,-13351.65242976,0.00010996,2]
[380230268,1755619833375,-500.0,0.00010999,2]
[380230269,1755619833385,-300.0,0.00010999,2]
[380230270,1755619833394,-200.0,0.00010999,2]
[380230271,1755619833404,-200.0,0.00010999,2]
[380230272,1755619833414,-150.0,0.00010999,2]
[380230273,1755619833423,-200.0,0.00010999,2]
[380230274,1755619833433,-1067.0,0.00010999,2]
[380230275,1755619833443,-500.0,0.00010999,2]
[380230276,1755619833453,-150.0,0.00010999,2]
[380230277,1755619833462,-150.0,0.00010999,2]
[380230278,1755619833472,-463.0,0.00010999,2]
[380230279,1755619833482,-500.0,0.00010999,2]
[380230280,1755619833491,-150.635762,0.00010999,2]
[380230281,1755619833500,-2045.0,0.00011,2]
[380230282,1755619833510,-33868.35908332,0.00011,2]
[380230283,1755619833547,-4240.50176687,0.00011,2]
[380230284,1755619833558,-302.99999417,0.00011,2]
[380230285,1755619833570,-506.73488194,0.00011,2]
[380230286,1755619833643,-7128.71151803,0.00011,2]
[380230287,1755619833657,-296.472,0.00011,2]
[380230288,1755619833671,-22488.57668535,0.00011,2]
[380230290,1755619837924,-399.44904932,0.00010499,2]
[380230291,1755619837933,-159.50115944,0.00010499,2]
[380230292,1755619837943,-178.76065871,0.000109,2]
[380230293,1755619837952,-293.32537104,0.00011,2]
[380230294,1755619837963,-517.34603854,0.00011,2]
[380230295,1755619837974,-430.78856042,0.00011,2]
[380230296,1755619837985,-10474.6342535,0.00011,2]
[380230297,1755619837997,-7937.59300449,0.00011,2]
[380230298,1755619838008,-5939.84635977,0.00011,2]
[380230299,1755619838019,-500.0,0.00011,2]
[380230300,1755619838069,-2333.08475786,0.00011,2]
[380230301,1755619838081,-1452.7337415,0.00011,2]
[380230431,1755619839645,-4389554.26250017,0.00011,2]
[380230433,1755619839655,-21449.53,0.00011,2]
[380230435,1755619839665,-214.07174483,0.00011,2]
[380230437,1755619839674,-1792.7069921,0.00011,2]
[380230439,1755619839684,-13092.5060306,0.00011,2]
[380230441,1755619839694,-5574.576991,0.00011,2]
[380230443,1755619839703,-326.313225,0.00011,2]
[380230445,1755619839713,-5404.153661,0.00011,2]
[380230447,1755619839722,-389288.95,0.00011,2]
[380230449,1755619839732,-151.0,0.00011,2]
[380230451,1755619839742,-1288945.5140515,0.00011,2]
[380230453,1755619839751,-2220.40871,0.00011,2]
[380230455,1755619839761,-500.0,0.00011,2]
[380230457,1755619839771,-500.0,0.00011073,2]
[380230459,1755619839781,-500.0,0.00011073,2]
[380230462,1755619839790,-549.06502798,0.00011073,2]
[380230464,1755619839800,-500.0,0.00011073,2]
[380230466,1755619839810,-540.27496227,0.00011073,2]
[380230468,1755619839831,-500.0,0.00011073,2]
[380230470,1755619839845,-500.0,0.00011073,2]
[380230472,1755619839855,-502.23686703,0.00011073,2]
[380230474,1755619839864,-500.0,0.00011073,2]
[380230476,1755619839874,-500.0,0.00011073,2]
[380230478,1755619839884,-500.0,0.00011073,2]
[380230480,1755619839894,-500.0,0.00011073,2]
[380230482,1755619839903,-500.0,0.00011073,2]
[380230484,1755619839913,-150.0,0.00011088,2]
[380230486,1755619839923,-791.45152612,0.00011088,2]
[380230488,1755619839932,-1008.71272937,0.00011088,2]
[380230490,1755619839942,-1225.97393262,0.00011088,2]
[380230492,1755619839952,-1443.23513587,0.00011088,2]
[380230494,1755619839964,-1660.49633912,0.00011088,2]
[380230496,1755619839974,-1877.75754237,0.00011089,2]
[380230498,1755619839983,-2095.01874561,0.00011089,2]
[380230500,1755619839993,-2312.27994886,0.00011089,2]
[380230502,1755619840003,-2529.54115211,0.00011089,2]
[380230504,1755619840012,-1238095.42393071,0.00011099,2]
[380230506,1755619840022,-79376.14488219,0.00011099,2]
[380230508,1755619840032,-79376.14488216,0.00011099,2]
[380230510,1755619840042,-79376.14488216,0.00011099,2]
[380230512,1755619840051,-79376.14488216,0.00011099,2]
[380230514,1755619840060,-79376.14488216,0.00011099,2]
[380230516,1755619840070,-79376.14488216,0.00011099,2]
[380230518,1755619840079,-79376.14488216,0.00011099,2]
[380230520,1755619840089,-79376.14488216,0.00011099,2]
[380230522,1755619840100,-79376.14488216,0.00011099,2]
[380230524,1755619840110,-79376.14488216,0.00011099,2]
[380230526,1755619840121,-273.139207,0.00011099,2]
[380230528,1755619840130,-151.0,0.00011099,2]
[380230530,1755619840140,-151.0,0.00011099,2]
[380230532,1755619840149,-151.0,0.00011099,2]
[380230534,1755619840163,-151.0,0.00011099,2]
[380230536,1755619840173,-151.0,0.00011099,2]
[380230538,1755619840182,-151.0,0.00011099,2]
[380230540,1755619840191,-151.0,0.00011099,2]
[380230542,1755619840201,-151.0,0.00011099,2]
[380230544,1755619840211,-151.277736,0.00011099,2]
[380230546,1755619840220,-151.0,0.00011099,2]
[380230548,1755619840230,-151.0,0.00011099,2]
[380230550,1755619840241,-151.0,0.00011099,2]
[380230552,1755619840251,-151.0,0.00011099,2]
[380230554,1755619840261,-151.0,0.00011099,2]
[380230556,1755619840271,-288.189065,0.00011099,2]
[380230559,1755619840280,-151.0,0.00011099,2]
[380230561,1755619840291,-151.408386,0.00011099,2]
[380230563,1755619840301,-151.0,0.00011099,2]
[380230565,1755619840310,-151.0,0.00011099,2]
[380230566,1755619840320,-214.374032,0.00011099,2]
[380230568,1755619840329,-151.0,0.00011099,2]
[380230570,1755619840339,-214.374032,0.00011099,2]
[380230573,1755619840348,-214.374032,0.00011099,2]
[380230575,1755619840358,-151.0,0.00011099,2]
[380230577,1755619840369,-214.374032,0.00011099,2]
[380230579,1755619840379,-151.0,0.00011099,2]
[380230581,1755619840389,-151.0,0.00011099,2]
[380230583,1755619840398,-151.0,0.00011099,2]
[380230585,1755619840407,-151.0,0.00011099,2]
[380230587,1755619840417,-151.0,0.00011099,2]
[380230589,1755619840426,-151.0,0.00011099,2]
[380230591,1755619840435,-151.0,0.00011099,2]
[380230593,1755619840444,-151.0,0.00011099,2]
[380230595,1755619840453,-151.0,0.00011099,2]
[380230597,1755619840463,-151.0,0.00011099,2]
[380230599,1755619840472,-151.0,0.00011099,2]
[380230601,1755619840482,-151.0,0.00011099,2]
[380230603,1755619840491,-151.0,0.00011099,2]
[380230605,1755619840500,-151.0,0.00011099,2]
[380230607,1755619840510,-151.0,0.00011099,2]
[380230609,1755619840519,-218.066385,0.00011099,2]
[380230611,1755619840529,-151.0,0.00011099,2]
[380230613,1755619840538,-167.410462,0.00011099,2]
[380230615,1755619840547,-218.066385,0.00011099,2]
[380230617,1755619840556,-218.066385,0.00011099,2]
[380230619,1755619840566,-151.253326,0.00011099,2]
[380230621,1755619840574,-218.066385,0.00011099,2]
[380230623,1755619840584,-151.0,0.00011099,2]
[380230625,1755619840593,-151.0,0.00011099,2]
[380230627,1755619840603,-151.0,0.00011099,2]
[380230629,1755619840612,-501.231888,0.00011099,2]
[380230631,1755619840624,-501.231888,0.00011099,2]
[380230633,1755619840633,-501.231888,0.00011099,2]
[380230635,1755619840642,-501.231888,0.00011099,2]
[380230637,1755619840652,-151.0,0.00011099,2]
[380230639,1755619840662,-238.387618,0.00011099,2]
[380230641,1755619840672,-151.0,0.00011099,2]
[380230643,1755619840681,-238.387618,0.00011099,2]
[380230645,1755619840691,-255.297882,0.00011099,2]
[380230647,1755619840701,-151.0,0.00011099,2]
[380230649,1755619840711,-151.0,0.00011099,2]
[380230651,1755619840721,-254.615506,0.00011099,2]
[380230653,1755619840731,-151.0,0.00011099,2]
[380230655,1755619840740,-151.0,0.00011099,2]
[380230657,1755619840750,-254.615506,0.00011099,2]
[380230659,1755619840759,-184.921829,0.00011099,2]
[380230661,1755619840768,-254.615506,0.00011099,2]
[380230663,1755619840778,-238.387618,0.00011099,2]
[380230665,1755619840787,-254.615506,0.00011099,2]
[380230667,1755619840797,-238.387618,0.00011099,2]
[380230669,1755619840807,-390.824012,0.00011099,2]
[380230671,1755619840817,-390.824012,0.00011099,2]
[380230673,1755619840826,-390.824012,0.00011099,2]
[380230675,1755619840835,-390.824012,0.00011099,2]
[380230677,1755619840844,-151.0,0.00011099,2]
[380230679,1755619840854,-151.0,0.00011099,2]
[380230681,1755619840863,-151.0,0.00011099,2]
[380230683,1755619840874,-151.0,0.00011099,2]
[380230685,1755619840883,-151.0,0.00011099,2]
[380230687,1755619840893,-151.0,0.00011099,2]
[380230689,1755619840903,-151.0,0.00011099,2]
[380230691,1755619840912,-151.0,0.00011099,2]
[380230693,1755619840922,-151.0,0.00011099,2]
[380230695,1755619840931,-151.0,0.00011099,2]
[380230697,1755619840940,-432.248279,0.00011099,2]
[380230699,1755619840950,-151.0,0.00011099,2]
[380230701,1755619840959,-151.0,0.00011099,2]
[380230703,1755619840969,-432.248279,0.00011099,2]
[380230705,1755619840978,-151.0,0.00011099,2]
[380230707,1755619840988,-432.248279,0.00011099,2]
[380230709,1755619840997,-154.083886,0.00011099,2]
[380230711,1755619841007,-432.248279,0.00011099,2]
[380230713,1755619841016,-154.083886,0.00011099,2]
[380230715,1755619841026,-151.0,0.00011099,2]
[380230717,1755619841035,-154.083886,0.00011099,2]
[380230719,1755619841044,-151.0,0.00011099,2]
[380230721,1755619841054,-154.083886,0.00011099,2]
[380230723,1755619841063,-547.700244,0.00011099,2]
[380230725,1755619841073,-547.700244,0.00011099,2]
[380230727,1755619841082,-547.700244,0.00011099,2]
[380230729,1755619841092,-547.700244,0.00011099,2]
[380230731,1755619841101,-151.0,0.00011099,2]
[380230733,1755619841111,-151.0,0.00011099,2]
[380230735,1755619841121,-183.257168,0.00011099,2]
[380230737,1755619841130,-151.0,0.00011099,2]
[380230739,1755619841139,-371.885207,0.00011099,2]
[380230741,1755619841149,-151.0,0.00011099,2]
[380230743,1755619841163,-371.885207,0.00011099,2]
[380230745,1755619841173,-151.0,0.00011099,2]
[380230747,1755619841182,-371.885207,0.00011099,2]
[380230749,1755619841192,-371.885207,0.00011099,2]
[380230751,1755619841202,-151.0,0.00011099,2]
[380230753,1755619841211,-151.0,0.00011099,2]
[380230755,1755619841220,-291.998878,0.00011099,2]
[380230757,1755619841230,-384.92158,0.00011099,2]
[380230759,1755619841240,-384.92158,0.00011099,2]
[380230761,1755619841250,-384.92158,0.00011099,2]
[380230763,1755619841260,-384.92158,0.00011099,2]
[380230766,1755619841269,-594.183332,0.00011099,2]
[380230768,1755619841279,-594.183332,0.00011099,2]
[380230769,1755619841289,-585.40732,0.00011099,2]
[380230771,1755619841298,-594.183332,0.00011099,2]
[380230774,1755619841308,-532.493875,0.00011099,2]
[380230775,1755619841319,-151.0,0.00011099,2]
[380230778,1755619841329,-594.183332,0.00011099,2]
[380230780,1755619841338,-585.40732,0.00011099,2]
[380230781,1755619841348,-532.493875,0.00011099,2]
[380230784,1755619841358,-585.40732,0.00011099,2]
[380230785,1755619841367,-532.493875,0.00011099,2]
[380230788,1755619841376,-1004.499885,0.00011099,2]
[380230790,1755619841386,-585.40732,0.00011099,2]
[380230792,1755619841396,-532.493875,0.00011099,2]
[380230794,1755619841405,-1004.499885,0.00011099,2]
[380230796,1755619841416,-1004.499885,0.00011099,2]
[380230798,1755619841425,-151.0,0.00011099,2]
[380230800,1755619841434,-292.928427,0.00011099,2]
[380230802,1755619841444,-292.928427,0.00011099,2]
[380230803,1755619841453,-292.928427,0.00011099,2]
[380230805,1755619841462,-292.928427,0.00011099,2]
[380230808,1755619841473,-1004.499885,0.00011099,2]
[380230809,1755619841483,-256.594025,0.00011099,2]
[380230811,1755619841492,-151.0,0.00011099,2]
[380230813,1755619841501,-151.0,0.00011099,2]
[380230815,1755619841511,-187.934876,0.00011099,2]
[380230817,1755619841520,-151.0,0.00011099,2]
[380230819,1755619841530,-151.0,0.00011099,2]
[380230821,1755619841540,-253.941086,0.00011099,2]
[380230824,1755619841550,-151.0,0.00011099,2]
[380230826,1755619841560,-151.0,0.00011099,2]
[380230828,1755619841569,-151.0,0.00011099,2]
[380230830,1755619841579,-151.0,0.00011099,2]
[380230832,1755619841588,-151.0,0.00011099,2]
[380230834,1755619841598,-151.0,0.00011099,2]
[380230836,1755619841607,-151.0,0.00011099,2]
[380230838,1755619841617,-151.0,0.00011099,2]
[380230840,1755619841626,-166.909525,0.00011099,2]
[380230842,1755619841636,-151.0,0.00011099,2]
[380230844,1755619841645,-151.0,0.00011099,2]
[380230846,1755619841654,-151.0,0.00011099,2]
[380230848,1755619841663,-151.0,0.00011099,2]
[380230850,1755619841673,-151.0,0.00011099,2]
[380230852,1755619841682,-151.0,0.00011099,2]
[380230854,1755619841691,-232.603273,0.00011099,2]
[380230855,1755619841700,-232.603273,0.00011099,2]
[380230857,1755619841709,-232.603273,0.00011099,2]
[380230859,1755619841720,-232.603273,0.00011099,2]
[380230861,1755619841729,-151.0,0.00011099,2]
[380230863,1755619841738,-151.0,0.00011099,2]
[380230865,1755619841747,-182.675276,0.00011099,2]
[380230867,1755619841756,-182.675276,0.00011099,2]
[380230869,1755619841766,-182.675276,0.00011099,2]
[380230871,1755619841775,-182.675276,0.00011099,2]
[380230872,1755619841784,-151.0,0.00011099,2]
[380230873,1755619841793,-901.631272,0.00011099,2]
[380230874,1755619841802,-151.0,0.00011099,2]
[380230875,1755619841811,-151.0,0.00011099,2]
[380230876,1755619841821,-156.795,0.00011099,2]
[380230877,1755619841831,-901.631272,0.00011099,2]
[380230878,1755619841840,-151.0,0.00011099,2]
[380230879,1755619841849,-156.795,0.00011099,2]
[380230880,1755619841859,-901.631272,0.00011099,2]
[380230881,1755619841869,-151.0,0.00011099,2]
[380230882,1755619841878,-156.795,0.00011099,2]
[380230883,1755619841887,-901.631272,0.00011099,2]
[380230884,1755619841897,-258.533558,0.00011099,2]
[380230885,1755619841906,-156.795,0.00011099,2]
[380230887,1755619841915,-151.0,0.00011099,2]
[380230889,1755619841925,-296.39277,0.00011099,2]
[380230891,1755619841934,-296.39277,0.00011099,2]
[380230893,1755619841945,-296.39277,0.00011099,2]
[380230895,1755619841955,-151.0,0.00011099,2]
[380230897,1755619841964,-275.431523,0.00011099,2]
[380230899,1755619841974,-296.39277,0.00011099,2]
[380230901,1755619841983,-275.431523,0.00011099,2]
[380230903,1755619841992,-275.431523,0.00011099,2]
[380230905,1755619842002,-151.0,0.00011099,2]
[380230907,1755619842011,-275.431523,0.00011099,2]
[380230909,1755619842022,-258.533558,0.00011099,2]
[380230911,1755619842032,-151.0,0.00011099,2]
[380230913,1755619842041,-151.0,0.00011099,2]
[380230915,1755619842053,-151.0,0.00011099,2]
[380230917,1755619842062,-258.533558,0.00011099,2]
[380230919,1755619842071,-258.533558,0.00011099,2]
[380230921,1755619842081,-152.696653,0.00011099,2]
[380230923,1755619842090,-159.806152,0.00011099,2]
[380230925,1755619842100,-255.88959,0.00011099,2]
[380230927,1755619842109,-255.88959,0.00011099,2]
[380230929,1755619842119,-151.0,0.00011099,2]
[380230931,1755619842128,-255.88959,0.00011099,2]
[380230933,1755619842138,-151.0,0.00011099,2]
[380230935,1755619842148,-255.88959,0.00011099,2]
[380230937,1755619842161,-157.337785,0.00011099,2]
[380230939,1755619842171,-188.096615,0.00011099,2]
[380230941,1755619842180,-188.096615,0.00011099,2]
[380230943,1755619842189,-271.870247,0.00011099,2]
[380230945,1755619842199,-188.096615,0.00011099,2]
[380230947,1755619842208,-271.870247,0.00011099,2]
[380230949,1755619842218,-151.0,0.00011099,2]
[380230951,1755619842228,-151.0,0.00011099,2]
[380230953,1755619842238,-151.0,0.00011099,2]
[380230955,1755619842248,-271.870247,0.00011099,2]
[380230957,1755619842257,-188.096615,0.00011099,2]
[380230959,1755619842266,-151.0,0.00011099,2]